[Event "*** Titled Tuesday Blitz"]
[Site "Chess.com"]
[Date "2020.11.10"]
[Round "1"]
[White "chito89"]
[Black "zverr1"]
[Result "1-0"]
[WhiteElo "2853"]
[BlackElo "2424"]
[TimeControl "180+1"]
[EndTime "10:07:00 PST"]
[Termination "chito89 won by checkmate"]

1. d4 {[%clk 0:02:58.7]} 1... Nf6 {[%clk 0:02:57.6]} 2. c4 {[%clk 0:02:58.7]}
2... c5 {[%clk 0:02:55.6]} 3. d5 {[%clk 0:02:58.6]} 3... b5 {[%clk 0:02:56.5]}
4. cxb5 {[%clk 0:02:58.8]} 4... a6 {[%clk 0:02:56.1]} 5. e3 {[%clk 0:02:59]}
5... e6 {[%clk 0:02:51]} 6. Nc3 {[%clk 0:02:58.3]} 6... Bb7 {[%clk 0:02:43]} 7.
e4 {[%clk 0:02:50.9]} 7... exd5 {[%clk 0:02:42.1]} 8. bxa6 {[%clk 0:02:40.2]}
8... Nxa6 {[%clk 0:02:40.7]} 9. exd5 {[%clk 0:02:39.6]} 9... Bd6 {[%clk
0:02:35.3]} 10. Bc4 {[%clk 0:02:28.1]} 10... O-O {[%clk 0:02:34.4]} 11. Nge2
{[%clk 0:02:26.8]} 11... Ng4 {[%clk 0:02:23.2]} 12. h3 {[%clk 0:02:22]} 12...
Nxf2 {[%clk 0:02:22.6]} 13. Kxf2 {[%clk 0:02:18.9]} 13... Qh4+ {[%clk
0:02:21.5]} 14. g3 {[%clk 0:02:16.4]} 14... Qxc4 {[%clk 0:02:22.4]} 15. Bf4
{[%clk 0:02:17.3]} 15... Bxf4 {[%clk 0:02:10]} 16. Nxf4 {[%clk 0:02:18.2]} 16...
d6 {[%clk 0:02:09.8]} 17. Qb3 {[%clk 0:02:05.1]} 17... Qxb3 {[%clk 0:02:02.5]}
18. axb3 {[%clk 0:02:06]} 18... Nb4 {[%clk 0:02:03.2]} 19. h4 {[%clk 0:01:50.5]}
19... g6 {[%clk 0:01:57.5]} 20. Ra4 {[%clk 0:01:44.5]} 20... Rfe8 {[%clk
0:01:53.4]} 21. Rha1 {[%clk 0:01:43.6]} 21... h6 {[%clk 0:01:49.5]} 22. Nb5
{[%clk 0:01:30.9]} 22... Bxd5 {[%clk 0:01:34.6]} 23. Nxd5 {[%clk 0:01:23.2]}
23... Rxa4 {[%clk 0:01:29]} 24. Nf6+ {[%clk 0:01:22.5]} 24... Kf8 {[%clk
0:01:28.1]} 25. bxa4 {[%clk 0:01:17.5]} 25... Nd3+ {[%clk 0:01:27.7]} 26. Kg1
{[%clk 0:01:14.3]} 26... Re6 {[%clk 0:01:22.1]} 27. a5 {[%clk 0:01:10]} 27...
Nb4 {[%clk 0:01:20.1]} 28. Nd7+ {[%clk 0:01:05.7]} 28... Ke7 {[%clk 0:01:19]}
29. Nb6 {[%clk 0:01:06.6]} 29... d5 {[%clk 0:01:15.1]} 30. a6 {[%clk 0:01:03.7]}
30... Nxa6 {[%clk 0:01:13.4]} 31. Rxa6 {[%clk 0:01:04.1]} 31... Re2 {[%clk
0:01:09.7]} 32. Nxd5+ {[%clk 0:01:02.6]} 32... Kf8 {[%clk 0:01:09.8]} 33. b3
{[%clk 0:00:53.5]} 33... Rb2 {[%clk 0:01:09.1]} 34. Ra3 {[%clk 0:00:53]} 34...
Kg7 {[%clk 0:01:01.5]} 35. Nbc3 {[%clk 0:00:51.7]} 35... Rd2 {[%clk 0:01:00.3]}
36. Ra7 {[%clk 0:00:47.3]} 36... Rb2 {[%clk 0:00:56.1]} 37. Rb7 {[%clk 0:00:47]}
37... g5 {[%clk 0:00:52.4]} 38. hxg5 {[%clk 0:00:46]} 38... hxg5 {[%clk
0:00:53.3]} 39. Ne4 {[%clk 0:00:45.7]} 39... Kg6 {[%clk 0:00:51.3]} 40. Nxc5
{[%clk 0:00:45.2]} 40... f5 {[%clk 0:00:50.1]} 41. Rb6+ {[%clk 0:00:44.2]} 41...
Kh5 {[%clk 0:00:50]} 42. Nf6+ {[%clk 0:00:44.1]} 42... Kg6 {[%clk 0:00:50.3]}
43. Nd3 {[%clk 0:00:40.5]} 43... Rd2 {[%clk 0:00:49.3]} 44. Ne4+ {[%clk
0:00:39.1]} 44... Kh5 {[%clk 0:00:45.8]} 45. Nxd2 {[%clk 0:00:37.6]} 45... Kg4
{[%clk 0:00:46.7]} 46. Kg2 {[%clk 0:00:36.3]} 46... f4 {[%clk 0:00:46.6]} 47.
Ne5+ {[%clk 0:00:36.2]} 47... Kh5 {[%clk 0:00:45.8]} 48. g4+ {[%clk 0:00:37.1]}
48... Kh4 {[%clk 0:00:46]} 49. Ndf3# {[%clk 0:00:38]} 1-0

[Event "*** Titled Tuesday Blitz"]
[Site "Chess.com"]
[Date "2020.11.10"]
[Round "1"]
[White "giantslayer83"]
[Black "Forantes"]
[Result "1-0"]
[WhiteElo "2702"]
[BlackElo "2354"]
[TimeControl "180+1"]
[EndTime "10:07:00 PST"]
[Termination "giantslayer83 won by checkmate"]

1. c4 {[%clk 0:03:00.9]} 1... Nf6 {[%clk 0:02:59.5]} 2. Nc3 {[%clk 0:03:00.8]}
2... e5 {[%clk 0:02:57.4]} 3. Nf3 {[%clk 0:03:00.7]} 3... Nc6 {[%clk 0:02:57.5]}
4. e3 {[%clk 0:03:01.1]} 4... a5 {[%clk 0:02:56]} 5. Qc2 {[%clk 0:02:54.6]} 5...
Bc5 {[%clk 0:02:54.6]} 6. a3 {[%clk 0:02:49.1]} 6... d6 {[%clk 0:02:53.6]} 7. b3
{[%clk 0:02:41.4]} 7... O-O {[%clk 0:02:51.5]} 8. Bb2 {[%clk 0:02:41.4]} 8...
Ne7 {[%clk 0:02:39.6]} 9. Bd3 {[%clk 0:02:31.8]} 9... Ng6 {[%clk 0:02:38.6]} 10.
h4 {[%clk 0:02:30]} 10... Bg4 {[%clk 0:02:26.6]} 11. Ng5 {[%clk 0:02:29.2]}
11... h6 {[%clk 0:01:54]} 12. Nxf7 {[%clk 0:02:28.4]} 12... Rxf7 {[%clk
0:01:49.1]} 13. Bxg6 {[%clk 0:02:28.9]} 13... Re7 {[%clk 0:01:49.5]} 14. Ne4
{[%clk 0:02:26.5]} 14... Nxe4 {[%clk 0:01:42.3]} 15. Qxe4 {[%clk 0:02:27.4]}
15... Be6 {[%clk 0:01:42.8]} 16. h5 {[%clk 0:02:23]} 16... Rb8 {[%clk
0:01:29.3]} 17. Bh7+ {[%clk 0:02:16.1]} 17... Kf8 {[%clk 0:01:09.5]} 18. Bf5
{[%clk 0:02:17]} 18... Bxf5 {[%clk 0:01:06.6]} 19. Qxf5+ {[%clk 0:02:16.7]}
19... Rf7 {[%clk 0:01:07.5]} 20. Qg4 {[%clk 0:02:17]} 20... Qf6 {[%clk
0:01:06.3]} 21. f3 {[%clk 0:02:11.7]} 21... b5 {[%clk 0:01:06.3]} 22. Bc3 {[%clk
0:02:09.5]} 22... bxc4 {[%clk 0:01:01.5]} 23. bxc4 {[%clk 0:02:10.4]} 23... a4
{[%clk 0:01:01.5]} 24. Ke2 {[%clk 0:02:09.9]} 24... Ke7 {[%clk 0:00:55.4]} 25.
Rhb1 {[%clk 0:02:08.9]} 25... Rff8 {[%clk 0:00:54.8]} 26. Bb4 {[%clk 0:02:06.8]}
26... Bxb4 {[%clk 0:00:48.6]} 27. axb4 {[%clk 0:02:07.7]} 27... Ra8 {[%clk
0:00:48.4]} 28. b5 {[%clk 0:02:06.4]} 28... Rfb8 {[%clk 0:00:48.2]} 29. Ra3
{[%clk 0:02:03.4]} 29... c6 {[%clk 0:00:44.5]} 30. Rb4 {[%clk 0:01:57.7]} 30...
cxb5 {[%clk 0:00:43.1]} 31. cxb5 {[%clk 0:01:58.6]} 31... Qg5 {[%clk 0:00:14.2]}
32. Raxa4 {[%clk 0:01:51.7]} 32... Qxg4 {[%clk 0:00:10.7]} 33. Rxg4 {[%clk
0:01:49.8]} 33... Rxa4 {[%clk 0:00:10.7]} 34. Rxa4 {[%clk 0:01:50.2]} 34... Rxb5
{[%clk 0:00:11.3]} 35. Ra7+ {[%clk 0:01:50.1]} 35... Kf6 {[%clk 0:00:11.8]} 36.
Rd7 {[%clk 0:01:50.2]} 36... Rb6 {[%clk 0:00:12.1]} 37. g4 {[%clk 0:01:49.8]}
37... Rc6 {[%clk 0:00:09.2]} 38. Kd3 {[%clk 0:01:49.8]} 38... Ra6 {[%clk
0:00:09.1]} 39. Ke4 {[%clk 0:01:49.6]} 39... Ke6 {[%clk 0:00:07.2]} 40. Rxg7
{[%clk 0:01:48]} 40... d5+ {[%clk 0:00:07.7]} 41. Kd3 {[%clk 0:01:48.1]} 41...
Ra3+ {[%clk 0:00:07.4]} 42. Ke2 {[%clk 0:01:48.5]} 42... e4 {[%clk 0:00:07.7]}
43. Rg6+ {[%clk 0:01:46.3]} 43... Kf7 {[%clk 0:00:08.1]} 44. Rxh6 {[%clk
0:01:45.7]} 44... exf3+ {[%clk 0:00:08.5]} 45. Kxf3 {[%clk 0:01:46.6]} 45... d4
{[%clk 0:00:08.8]} 46. Rd6 {[%clk 0:01:45.4]} 46... dxe3 {[%clk 0:00:09]} 47.
dxe3 {[%clk 0:01:46.3]} 47... Kg7 {[%clk 0:00:09.8]} 48. g5 {[%clk 0:01:46]}
48... Ra5 {[%clk 0:00:09.5]} 49. Kf4 {[%clk 0:01:46.4]} 49... Kh7 {[%clk
0:00:09.9]} 50. Rd7+ {[%clk 0:01:46.2]} 50... Kh8 {[%clk 0:00:09.8]} 51. h6
{[%clk 0:01:47.1]} 51... Ra8 {[%clk 0:00:10.2]} 52. g6 {[%clk 0:01:46.8]} 52...
Rf8+ {[%clk 0:00:10.5]} 53. Kg5 {[%clk 0:01:46.7]} 53... Re8 {[%clk 0:00:10.2]}
54. e4 {[%clk 0:01:44.2]} 54... Kg8 {[%clk 0:00:09.9]} 55. h7+ {[%clk
0:01:43.4]} 55... Kh8 {[%clk 0:00:10.2]} 56. Kh6 {[%clk 0:01:44]} 56... Rg8
{[%clk 0:00:05.5]} 57. g7+ {[%clk 0:01:42]} 57... Rxg7 {[%clk 0:00:06]} 58. Rd8+
{[%clk 0:01:42.5]} 58... Rg8 {[%clk 0:00:03.8]} 59. Rxg8# {[%clk 0:01:43]} 1-0

[Event "*** Titled Tuesday Blitz"]
[Site "Chess.com"]
[Date "2020.11.10"]
[Round "1"]
[White "nochewycandy"]
[Black "parintele_chess"]
[Result "1-0"]
[WhiteElo "2528"]
[BlackElo "2143"]
[TimeControl "180+1"]
[EndTime "10:07:00 PST"]
[Termination "nochewycandy won by resignation"]

1. e4 {[%clk 0:02:59.7]} 1... d6 {[%clk 0:02:54.5]} 2. d4 {[%clk 0:02:59.4]}
2... Nf6 {[%clk 0:02:54.6]} 3. Nc3 {[%clk 0:02:58.5]} 3... g6 {[%clk 0:02:54.9]}
4. Be2 {[%clk 0:02:57.4]} 4... Bg7 {[%clk 0:02:54.6]} 5. Nf3 {[%clk 0:02:57.4]}
5... O-O {[%clk 0:02:54.8]} 6. O-O {[%clk 0:02:57.3]} 6... e5 {[%clk 0:02:55.1]}
7. dxe5 {[%clk 0:02:53.8]} 7... dxe5 {[%clk 0:02:54.9]} 8. Qxd8 {[%clk
0:02:51.5]} 8... Rxd8 {[%clk 0:02:54.8]} 9. Nxe5 {[%clk 0:02:52.2]} 9... Re8
{[%clk 0:02:54.5]} 10. Bf4 {[%clk 0:02:44.6]} 10... Nxe4 {[%clk 0:02:46.3]} 11.
Nxe4 {[%clk 0:02:40.5]} 11... Bxe5 {[%clk 0:02:46]} 12. Bxe5 {[%clk 0:02:40.6]}
12... Rxe5 {[%clk 0:02:46.9]} 13. Bf3 {[%clk 0:02:39]} 13... Bf5 {[%clk
0:02:43.6]} 14. Rfe1 {[%clk 0:02:35.8]} 14... Nc6 {[%clk 0:02:35.8]} 15. c3
{[%clk 0:02:22.2]} 15... Bxe4 {[%clk 0:02:27.7]} 16. Rxe4 {[%clk 0:02:23.1]}
16... Rxe4 {[%clk 0:02:27.4]} 17. Bxe4 {[%clk 0:02:24]} 17... Rd8 {[%clk
0:02:22.1]} 18. Kf1 {[%clk 0:02:19.1]} 18... f5 {[%clk 0:02:02.7]} 19. Bc2
{[%clk 0:02:14]} 19... Ne5 {[%clk 0:01:55.9]} 20. Rd1 {[%clk 0:02:08.3]} 20...
Rxd1+ {[%clk 0:01:54.2]} 21. Bxd1 {[%clk 0:02:09.2]} 21... Nd3 {[%clk
0:01:53.4]} 22. b4 {[%clk 0:02:04.5]} 22... Kf8 {[%clk 0:01:47.5]} 23. g3 {[%clk
0:02:01.5]} 23... Nc1 {[%clk 0:01:43.5]} 24. a3 {[%clk 0:01:51.2]} 24... Na2
{[%clk 0:01:40.2]} 25. c4 {[%clk 0:01:50.8]} 25... Nc3 {[%clk 0:01:40]} 26. Bc2
{[%clk 0:01:48.4]} 26... b5 {[%clk 0:01:35.5]} 27. cxb5 {[%clk 0:01:40.9]} 27...
Nxb5 {[%clk 0:01:35.1]} 28. a4 {[%clk 0:01:38.7]} 28... Nd4 {[%clk 0:01:35.1]}
29. Bd3 {[%clk 0:01:37.2]} 29... Ke7 {[%clk 0:01:34.9]} 30. f4 {[%clk
0:01:32.2]} 30... Kd6 {[%clk 0:01:34.3]} 31. Bc4 {[%clk 0:01:32.5]} 31... Ne6
{[%clk 0:01:30.9]} 32. Kf2 {[%clk 0:01:29.6]} 32... h6 {[%clk 0:01:19.1]} 33. h4
{[%clk 0:01:23]} 33... g5 {[%clk 0:01:19]} 34. fxg5 {[%clk 0:01:22.8]} 34...
hxg5 {[%clk 0:01:19.5]} 35. h5 {[%clk 0:01:23.1]} 35... Nf8 {[%clk 0:01:10.4]}
36. Ke3 {[%clk 0:01:11.5]} 36... Ke5 {[%clk 0:01:10.2]} 37. Bg8 {[%clk
0:01:09.7]} 37... f4+ {[%clk 0:01:02.7]} 38. gxf4+ {[%clk 0:01:10.6]} 38...
gxf4+ {[%clk 0:01:03.6]} 39. Kf3 {[%clk 0:01:10]} 39... Kf5 {[%clk 0:00:53.6]}
40. h6 {[%clk 0:01:00]} 40... Kg6 {[%clk 0:00:36.1]} 41. h7 {[%clk 0:00:57.2]}
41... Nxh7 {[%clk 0:00:32]} 42. Bxh7+ {[%clk 0:00:57.1]} 42... Kxh7 {[%clk
0:00:32.9]} 43. Kxf4 {[%clk 0:00:57.9]} 43... Kg7 {[%clk 0:00:33.2]} 44. Ke5
{[%clk 0:00:58.6]} 44... Kf7 {[%clk 0:00:33.1]} 45. Kd5 {[%clk 0:00:59.1]} 45...
Ke7 {[%clk 0:00:33.5]} 46. Kc6 {[%clk 0:00:59.8]} 46... Kd8 {[%clk 0:00:30.3]}
47. Kb7 {[%clk 0:01:00.2]} 47... Kd7 {[%clk 0:00:25.9]} 48. Kxa7 {[%clk
0:00:59.6]} 48... Kc8 {[%clk 0:00:26.3]} 49. b5 {[%clk 0:00:55.1]} 49... Kd7
{[%clk 0:00:25.7]} 50. Kb7 {[%clk 0:00:54.5]} 50... Kd6 {[%clk 0:00:21.8]} 51.
a5 {[%clk 0:00:54.6]} 51... c5 {[%clk 0:00:21.8]} 52. bxc6 {[%clk 0:00:54.6]}
1-0

[Event "*** Titled Tuesday Blitz"]
[Site "Chess.com"]
[Date "2020.11.10"]
[Round "1"]
[White "Make_it_shine060"]
[Black "Stormeman100100"]
[Result "0-1"]
[WhiteElo "2172"]
[BlackElo "2539"]
[TimeControl "180+1"]
[EndTime "10:07:01 PST"]
[Termination "Stormeman100100 won by checkmate"]

1. d4 {[%clk 0:02:49.9]} 1... Nf6 {[%clk 0:02:58.8]} 2. c4 {[%clk 0:02:48.9]}
2... e6 {[%clk 0:02:57.2]} 3. Nf3 {[%clk 0:02:48]} 3... d5 {[%clk 0:02:55.8]} 4.
Nc3 {[%clk 0:02:46.9]} 4... Bb4 {[%clk 0:02:55.4]} 5. cxd5 {[%clk 0:02:46]} 5...
exd5 {[%clk 0:02:53.4]} 6. Bg5 {[%clk 0:02:45.1]} 6... h6 {[%clk 0:02:52.8]} 7.
Bh4 {[%clk 0:02:44.2]} 7... c6 {[%clk 0:02:33.6]} 8. e3 {[%clk 0:02:41.9]} 8...
Bf5 {[%clk 0:02:33.2]} 9. Qb3 {[%clk 0:02:36.5]} 9... Qb6 {[%clk 0:02:23.5]} 10.
Nd2 {[%clk 0:02:26.9]} 10... Nbd7 {[%clk 0:02:16.1]} 11. Be2 {[%clk 0:02:24.5]}
11... O-O {[%clk 0:02:15.6]} 12. O-O {[%clk 0:02:23.6]} 12... Rfe8 {[%clk
0:02:07.8]} 13. a3 {[%clk 0:02:09.6]} 13... Bd6 {[%clk 0:02:07]} 14. Bg3 {[%clk
0:02:01.3]} 14... Bxg3 {[%clk 0:01:53.4]} 15. hxg3 {[%clk 0:02:00.3]} 15... a5
{[%clk 0:01:47.5]} 16. Qxb6 {[%clk 0:01:37]} 16... Nxb6 {[%clk 0:01:47.1]} 17.
b3 {[%clk 0:01:37.6]} 17... a4 {[%clk 0:01:40.7]} 18. b4 {[%clk 0:01:34.1]}
18... Nc8 {[%clk 0:01:22.8]} 19. b5 {[%clk 0:01:28]} 19... Nd6 {[%clk
0:01:21.1]} 20. Rfc1 {[%clk 0:01:24.4]} 20... Ra5 {[%clk 0:01:14.8]} 21. bxc6
{[%clk 0:01:21.4]} 21... bxc6 {[%clk 0:01:15.7]} 22. Na2 {[%clk 0:01:20.6]}
22... Nb5 {[%clk 0:01:03.1]} 23. Nb4 {[%clk 0:01:13.6]} 23... Nxd4 {[%clk
0:01:01.1]} 24. exd4 {[%clk 0:01:01.6]} 24... Rxe2 {[%clk 0:01:00.3]} 25. Nxc6
{[%clk 0:00:55.1]} 25... Rb5 {[%clk 0:00:51.5]} 26. Nf3 {[%clk 0:00:54.6]} 26...
Rbb2 {[%clk 0:00:50.9]} 27. Kh1 {[%clk 0:00:37.3]} 27... Rxf2 {[%clk 0:00:49]}
28. Ne7+ {[%clk 0:00:35.5]} 28... Kh7 {[%clk 0:00:48.7]} 29. Nxf5 {[%clk
0:00:36.1]} 29... Rxg2 {[%clk 0:00:48.9]} 30. Rg1 {[%clk 0:00:35.1]} 30... Rgf2
{[%clk 0:00:48.6]} 31. Raf1 {[%clk 0:00:33.5]} 31... Rfc2 {[%clk 0:00:47.8]} 32.
Ne3 {[%clk 0:00:31.6]} 32... Rc3 {[%clk 0:00:47.1]} 33. Re1 {[%clk 0:00:30.2]}
33... Rbb3 {[%clk 0:00:46.1]} 34. Nd2 {[%clk 0:00:23.7]} 34... Rxe3 {[%clk
0:00:43.2]} 35. Nxb3 {[%clk 0:00:23.3]} 35... Rxb3 {[%clk 0:00:43.6]} 36. Rb1
{[%clk 0:00:21.9]} 36... Rxa3 {[%clk 0:00:43]} 37. Rb7 {[%clk 0:00:22.8]} 37...
Kg6 {[%clk 0:00:40]} 38. Re1 {[%clk 0:00:21.9]} 38... Ne4 {[%clk 0:00:40.2]} 39.
Kh2 {[%clk 0:00:20]} 39... Ra2+ {[%clk 0:00:38.5]} 40. Kh3 {[%clk 0:00:20.1]}
40... f5 {[%clk 0:00:34.5]} 41. Rb6+ {[%clk 0:00:19]} 41... Kh5 {[%clk
0:00:33.4]} 42. Rf1 {[%clk 0:00:15.1]} 42... Ng5# {[%clk 0:00:33.2]} 0-1

[Event "*** Titled Tuesday Blitz"]
[Site "Chess.com"]
[Date "2020.11.10"]
[Round "1"]
[White "zajka-molotok"]
[Black "PawnEatingZombie"]
[Result "1-0"]
[WhiteElo "2538"]
[BlackElo "2178"]
[TimeControl "180+1"]
[EndTime "10:07:02 PST"]
[Termination "zajka-molotok won on time"]

1. c4 {[%clk 0:03:00.9]} 1... e6 {[%clk 0:02:59.7]} 2. Nc3 {[%clk 0:03:00.3]}
2... d5 {[%clk 0:03:00.1]} 3. e3 {[%clk 0:02:58.2]} 3... Nf6 {[%clk 0:02:58.9]}
4. b3 {[%clk 0:02:56.6]} 4... Bd6 {[%clk 0:02:58.5]} 5. Bb2 {[%clk 0:02:55.5]}
5... b6 {[%clk 0:02:58.6]} 6. Nf3 {[%clk 0:02:52.1]} 6... Bb7 {[%clk 0:02:58.3]}
7. g3 {[%clk 0:02:48.5]} 7... O-O {[%clk 0:02:21.7]} 8. Bg2 {[%clk 0:02:39.8]}
8... dxc4 {[%clk 0:02:18.5]} 9. bxc4 {[%clk 0:02:40.7]} 9... c5 {[%clk
0:02:18.2]} 10. O-O {[%clk 0:02:38.9]} 10... a6 {[%clk 0:02:12.8]} 11. Qe2
{[%clk 0:02:35.9]} 11... Nc6 {[%clk 0:02:04.5]} 12. Rad1 {[%clk 0:02:30.8]}
12... Qe7 {[%clk 0:02:00.3]} 13. Ne1 {[%clk 0:02:18]} 13... Rac8 {[%clk
0:01:46.7]} 14. f4 {[%clk 0:02:16.1]} 14... Rfd8 {[%clk 0:01:31.3]} 15. g4
{[%clk 0:02:04]} 15... Nb4 {[%clk 0:01:12.4]} 16. g5 {[%clk 0:01:56.1]} 16...
Ne8 {[%clk 0:01:12.2]} 17. Nf3 {[%clk 0:01:30.7]} 17... Bb8 {[%clk 0:01:04.1]}
18. d3 {[%clk 0:01:26.2]} 18... b5 {[%clk 0:00:56.9]} 19. cxb5 {[%clk
0:01:18.6]} 19... axb5 {[%clk 0:00:56.9]} 20. a3 {[%clk 0:01:10.5]} 20... Nc6
{[%clk 0:00:56.6]} 21. Nxb5 {[%clk 0:01:09.8]} 21... Ba6 {[%clk 0:00:56]} 22. a4
{[%clk 0:01:08.2]} 22... Nb4 {[%clk 0:00:54.9]} 23. Ne5 {[%clk 0:01:00.3]} 23...
Nd6 {[%clk 0:00:30.1]} 24. Nxd6 {[%clk 0:00:35.6]} 24... Bxd6 {[%clk 0:00:27.8]}
25. Nc4 {[%clk 0:00:35.6]} 25... Bc7 {[%clk 0:00:21.5]} 26. Be4 {[%clk
0:00:30.9]} 26... Rd7 {[%clk 0:00:03.9]} 27. Qh5 {[%clk 0:00:21.2]} 27... g6
{[%clk 0:00:04.1]} 28. Qh6 {[%clk 0:00:20]} 28... Qf8 {[%clk 0:00:04.6]} 29. Qh3
{[%clk 0:00:16.3]} 29... Rcd8 {[%clk 0:00:02.5]} 30. Bf6 {[%clk 0:00:15.4]}
30... Rb8 {[%clk 0:00:01.8]} 31. Qg2 {[%clk 0:00:13.8]} 1-0

[Event "*** Titled Tuesday Blitz"]
[Site "Chess.com"]
[Date "2020.11.10"]
[Round "1"]
[White "TigrVShlyape"]
[Black "SanchezKelvin"]
[Result "1-0"]
[WhiteElo "2867"]
[BlackElo "2437"]
[TimeControl "180+1"]
[EndTime "10:07:04 PST"]
[Termination "TigrVShlyape won by resignation"]

1. d4 {[%clk 0:03:00.3]} 1... Nf6 {[%clk 0:02:45.2]} 2. Nf3 {[%clk 0:02:59.7]}
2... c5 {[%clk 0:02:44.3]} 3. d5 {[%clk 0:02:58.9]} 3... g6 {[%clk 0:02:44.2]}
4. Nc3 {[%clk 0:02:57.3]} 4... Bg7 {[%clk 0:02:44.3]} 5. e4 {[%clk 0:02:57.8]}
5... O-O {[%clk 0:02:43.8]} 6. Be2 {[%clk 0:02:57.2]} 6... d6 {[%clk 0:02:43.5]}
7. O-O {[%clk 0:02:57.3]} 7... Bg4 {[%clk 0:02:40.9]} 8. Nd2 {[%clk 0:02:56.2]}
8... Bxe2 {[%clk 0:02:41.8]} 9. Qxe2 {[%clk 0:02:55.9]} 9... e6 {[%clk
0:02:40.5]} 10. Nc4 {[%clk 0:02:46.4]} 10... exd5 {[%clk 0:02:39.6]} 11. exd5
{[%clk 0:02:46]} 11... Re8 {[%clk 0:02:38.1]} 12. Qf3 {[%clk 0:02:32.9]} 12...
Nfd7 {[%clk 0:02:15.1]} 13. Ne4 {[%clk 0:02:19.6]} 13... Ne5 {[%clk 0:02:14]}
14. Nxe5 {[%clk 0:02:19.1]} 14... Rxe5 {[%clk 0:02:08.4]} 15. Bf4 {[%clk
0:02:00.3]} 15... Rf5 {[%clk 0:01:18.9]} 16. Nxd6 {[%clk 0:01:47.8]} 16... Rf6
{[%clk 0:00:59.9]} 17. Rfe1 {[%clk 0:01:32.2]} 17... Rxd6 {[%clk 0:00:43.4]} 18.
Bxd6 {[%clk 0:01:31.3]} 18... Qxd6 {[%clk 0:00:44.3]} 19. Re8+ {[%clk 0:01:31]}
19... Bf8 {[%clk 0:00:44.1]} 20. Rae1 {[%clk 0:01:28.7]} 20... a5 {[%clk
0:00:28.5]} 21. Qg3 {[%clk 0:00:42.2]} 21... Kg7 {[%clk 0:00:18]} 22. Qc3+
{[%clk 0:00:27.4]} 22... Kg8 {[%clk 0:00:14.4]} 23. Qe5 {[%clk 0:00:21]} 23...
Qxe5 {[%clk 0:00:12.2]} 24. R1xe5 {[%clk 0:00:20.2]} 24... Kg7 {[%clk
0:00:12.5]} 25. Rd8 {[%clk 0:00:20.5]} 25... Nc6 {[%clk 0:00:08]} 26. Rxa8
{[%clk 0:00:18.4]} 26... Nxe5 {[%clk 0:00:08]} 27. Rxa5 {[%clk 0:00:18.5]} 27...
Bd6 {[%clk 0:00:06]} 28. Rb5 {[%clk 0:00:18.2]} 28... Nd7 {[%clk 0:00:02.2]} 29.
Rxb7 {[%clk 0:00:17.9]} 29... Nf6 {[%clk 0:00:03.1]} 30. c4 {[%clk 0:00:18]}
30... Ne4 {[%clk 0:00:02.5]} 31. a4 {[%clk 0:00:17.8]} 31... Nd2 {[%clk
0:00:01.9]} 32. b3 {[%clk 0:00:18]} 32... Nxc4 {[%clk 0:00:02.8]} 33. bxc4
{[%clk 0:00:17.9]} 1-0

[Event "*** Titled Tuesday Blitz"]
[Site "Chess.com"]
[Date "2020.11.10"]
[Round "1"]
[White "ShcufNaiRolf"]
[Black "Witik"]
[Result "0-1"]
[WhiteElo "2335"]
[BlackElo "2663"]
[TimeControl "180+1"]
[EndTime "10:07:04 PST"]
[Termination "Witik won on time"]

1. e4 {[%clk 0:02:56.5]} 1... c5 {[%clk 0:02:59.5]} 2. Nf3 {[%clk 0:02:54.7]}
2... Nc6 {[%clk 0:02:59.5]} 3. d4 {[%clk 0:02:55.2]} 3... cxd4 {[%clk
0:03:00.4]} 4. Nxd4 {[%clk 0:02:56.1]} 4... g6 {[%clk 0:03:00.8]} 5. Nc3 {[%clk
0:02:56.4]} 5... Bg7 {[%clk 0:03:01]} 6. Be3 {[%clk 0:02:56.7]} 6... Nf6 {[%clk
0:03:01.3]} 7. Bc4 {[%clk 0:02:56.5]} 7... O-O {[%clk 0:03:01.1]} 8. Bb3 {[%clk
0:02:55.5]} 8... Qa5 {[%clk 0:03:01]} 9. O-O {[%clk 0:02:54.5]} 9... d6 {[%clk
0:03:01]} 10. h3 {[%clk 0:02:54.3]} 10... Bd7 {[%clk 0:03:01]} 11. Re1 {[%clk
0:02:54.5]} 11... Rfc8 {[%clk 0:03:00.9]} 12. Nd5 {[%clk 0:02:45.3]} 12... Nxd5
{[%clk 0:02:55.6]} 13. exd5 {[%clk 0:02:46.2]} 13... Ne5 {[%clk 0:02:54.1]} 14.
Qe2 {[%clk 0:02:39.9]} 14... Qc7 {[%clk 0:02:27.7]} 15. c3 {[%clk 0:02:04.5]}
15... h5 {[%clk 0:01:55.8]} 16. Rad1 {[%clk 0:01:55.7]} 16... Bf6 {[%clk
0:01:54.5]} 17. Nf3 {[%clk 0:01:05.2]} 17... Nc4 {[%clk 0:01:22.5]} 18. Bd4
{[%clk 0:01:02.7]} 18... b5 {[%clk 0:01:18.5]} 19. Bxf6 {[%clk 0:00:53.8]} 19...
exf6 {[%clk 0:01:18.6]} 20. Nd4 {[%clk 0:00:45.7]} 20... Kg7 {[%clk 0:01:05.4]}
21. Qc2 {[%clk 0:00:35.6]} 21... Re8 {[%clk 0:00:57.6]} 22. Kf1 {[%clk
0:00:27.5]} 22... Re5 {[%clk 0:00:54.1]} 23. Nf3 {[%clk 0:00:25.7]} 23... Bf5
{[%clk 0:00:51.3]} 24. Qc1 {[%clk 0:00:23.4]} 24... Rxe1+ {[%clk 0:00:46.7]} 25.
Rxe1 {[%clk 0:00:24.3]} 25... a5 {[%clk 0:00:45.6]} 26. Kg1 {[%clk 0:00:21.5]}
26... Qc5 {[%clk 0:00:38.3]} 27. Bxc4 {[%clk 0:00:20.1]} 27... bxc4 {[%clk
0:00:37.2]} 28. Qd2 {[%clk 0:00:18.3]} 28... Bd3 {[%clk 0:00:37.1]} 29. Qf4
{[%clk 0:00:09.9]} 29... Qxd5 {[%clk 0:00:36]} 30. Re7 {[%clk 0:00:10.5]} 30...
g5 {[%clk 0:00:21.6]} 31. Qe3 {[%clk 0:00:02.6]} 31... Rb8 {[%clk 0:00:17.9]}
0-1

[Event "*** Titled Tuesday Blitz"]
[Site "Chess.com"]
[Date "2020.11.10"]
[Round "1"]
[White "Mikhail_Golubev"]
[Black "eCztery"]
[Result "0-1"]
[WhiteElo "2565"]
[BlackElo "2279"]
[TimeControl "180+1"]
[EndTime "10:07:05 PST"]
[Termination "eCztery won by resignation"]

1. e4 {[%clk 0:03:00.9]} 1... c5 {[%clk 0:02:54.9]} 2. Nf3 {[%clk 0:02:58.8]}
2... g6 {[%clk 0:02:49.4]} 3. d4 {[%clk 0:02:55.4]} 3... cxd4 {[%clk 0:02:45.9]}
4. Qxd4 {[%clk 0:02:53.9]} 4... Nf6 {[%clk 0:02:43.2]} 5. Nc3 {[%clk 0:02:51.7]}
5... Nc6 {[%clk 0:02:42.3]} 6. Qa4 {[%clk 0:02:49.8]} 6... d6 {[%clk 0:02:35.3]}
7. e5 {[%clk 0:02:49.2]} 7... dxe5 {[%clk 0:02:34.8]} 8. Nxe5 {[%clk 0:02:48.7]}
8... Bg7 {[%clk 0:02:28.4]} 9. Bb5 {[%clk 0:02:36.3]} 9... O-O {[%clk
0:02:20.9]} 10. Nxc6 {[%clk 0:02:36.3]} 10... bxc6 {[%clk 0:02:20.2]} 11. Bxc6
{[%clk 0:02:37.2]} 11... Rb8 {[%clk 0:02:18.4]} 12. O-O {[%clk 0:02:37]} 12...
Qc7 {[%clk 0:02:10.9]} 13. Bf3 {[%clk 0:02:26.9]} 13... Bf5 {[%clk 0:01:51.5]}
14. Re1 {[%clk 0:02:01.8]} 14... e5 {[%clk 0:01:47.8]} 15. Rb1 {[%clk
0:00:56.2]} 15... Rfd8 {[%clk 0:01:29.7]} 16. Bg5 {[%clk 0:00:51.3]} 16... Rd4
{[%clk 0:01:12.7]} 17. Qa6 {[%clk 0:00:23.5]} 17... Bxc2 {[%clk 0:00:47.3]} 18.
Bxf6 {[%clk 0:00:19.1]} 18... Bxb1 {[%clk 0:00:29.8]} 19. Bxg7 {[%clk
0:00:16.1]} 19... Kxg7 {[%clk 0:00:20.4]} 20. Nxb1 {[%clk 0:00:14.6]} 20... Rxb2
{[%clk 0:00:18.8]} 21. Qa3 {[%clk 0:00:12.7]} 21... Qc2 {[%clk 0:00:16.5]} 22.
Qe3 {[%clk 0:00:12.4]} 22... f6 {[%clk 0:00:10.5]} 23. Nc3 {[%clk 0:00:11.5]}
23... Rd2 {[%clk 0:00:08.3]} 24. Qxa7+ {[%clk 0:00:09.3]} 24... Kh6 {[%clk
0:00:08.8]} 25. Ne4 {[%clk 0:00:06.3]} 25... Rd4 {[%clk 0:00:06.7]} 26. Nxf6
{[%clk 0:00:04]} 26... Qxf2+ {[%clk 0:00:06.2]} 0-1